fUST/lending_fUST_20250223
["ID","MTS","AMOUNT","RATE_DAILY","PERIOD"]
[354117351,1740257437161,-540.37,0.00014746,2]
[354117352,1740257437170,-500.0,0.00014746,2]
[354117353,1740257437179,-500.0,0.00014746,2]
[354117354,1740257437188,-500.0,0.00014746,2]
[354117355,1740257437197,-500.0,0.00014746,2]
[354117356,1740257437207,-3052.19,0.00014746,2]
[354117357,1740257437216,-500.0,0.00014746,2]
[354117358,1740257437225,-500.0,0.00014746,2]
[354117359,1740257437234,-151.0,0.00014746,2]
[354117360,1740257437243,-317.58,0.00014746,2]
[354117361,1740257437253,-151.0,0.00014746,2]
[354117362,1740257437262,-17888.7,0.00014746,2]
[354117363,1740257437271,-566.2,0.00014746,2]
[354117364,1740257437280,-151.0,0.00014746,2]
[354117365,1740257437289,-795.31,0.00014746,2]
[354117366,1740257437298,-512.36,0.00014746,2]
[354117367,1740257437308,-500.0,0.00014746,2]
[354117368,1740257437317,-2444.37,0.00014746,2]
[354117369,1740257437326,-159.804753,0.00014746,2]
[354117370,1740257437335,-1242.69,0.00014746,2]
[354117371,1740257437345,-500.0,0.00014746,2]
[354117372,1740257437354,-151.0,0.00014746,2]
[354117373,1740257437364,-151.0,0.00014746,2]
[354117374,1740257437373,-182.44,0.00014747,2]
[354117375,1740257437382,-438.4,0.00014747,2]
[354117376,1740257437391,-446.68,0.00014747,2]
[354117377,1740257437400,-497.14,0.00014747,2]
[354117378,1740257437409,-310.56,0.00014747,2]
[354117379,1740257437418,-500.0,0.00014747,2]
[354117380,1740257437427,-500.0,0.00014827,2]
[354117381,1740257437436,-500.0,0.00014827,2]
[354117382,1740257437446,-500.0,0.00014827,2]
[354117383,1740257437455,-2444.37,0.00014827,2]
[354117384,1740257437464,-500.0,0.00014827,2]
[354117386,1740257437474,-2199.91,0.00014827,2]
[354117387,1740257437484,-695.52,0.00014827,2]
[354117390,1740257437493,-500.0,0.00014827,2]
[354117392,1740257437502,-500.0,0.00014827,2]
[354117394,1740257437512,-500.0,0.00014827,2]
[354117395,1740257437521,-500.0,0.00014828,2]
[354117396,1740257437530,-540.37,0.00014828,2]
[354117397,1740257437539,-276.98,0.00014828,2]
[354117398,1740257437549,-500.0,0.00014828,2]
[354117399,1740257437558,-500.0,0.00014828,2]
[354117400,1740257437567,-500.0,0.00014828,2]
[354117401,1740257437576,-552.96,0.00014828,2]
[354117402,1740257437585,-500.0,0.00014828,2]
[354117403,1740257437595,-17888.7,0.00014828,2]
[354117404,1740257437605,-566.2,0.00014828,2]
[354117405,1740257437616,-795.31,0.00014828,2]
[354117406,1740257437625,-333.8,0.00014828,2]
[354117407,1740257437635,-2444.37,0.00014828,2]
[354117408,1740257437645,-1242.69,0.00014828,2]
[354117409,1740257437655,-532.25744921,0.00014828,2]
[354117410,1740257437665,-500.0,0.00014829,2]
[354117411,1740257437674,-307.944,0.00014882,2]
[354117412,1740257437683,-12482.2230996,0.000149,2]
[354117413,1740257437693,-500.0,0.00014909,2]
[354117414,1740257437702,-500.0,0.00014909,2]
[354117415,1740257437713,-500.0,0.00014909,2]
[354117416,1740257437723,-640.73,0.00014909,2]
[354117417,1740257437733,-2199.91,0.00014909,2]
[354117419,1740257437742,-695.52,0.00014909,2]
[354117421,1740257437751,-500.0,0.00014909,2]
[354117423,1740257437760,-500.0,0.00014909,2]
[354117425,1740257437769,-500.0,0.00014909,2]
[354117427,1740257437778,-500.0,0.0001491,2]
[354117429,1740257437788,-540.37,0.0001491,2]
[354117431,1740257437798,-500.0,0.0001491,2]
[354117433,1740257437807,-500.0,0.0001491,2]
[354117434,1740257437817,-484.22,0.0001491,2]
[354117436,1740257437827,-151.0,0.0001491,2]
[354117438,1740257437836,-564.06,0.0001491,2]
[354117440,1740257437846,-211.296908,0.0001491,2]
[354117442,1740257437856,-151.0,0.0001491,2]
[354117444,1740257437865,-151.0,0.0001491,2]
[354117446,1740257437875,-17888.7,0.0001491,2]
[354117448,1740257437884,-566.2,0.0001491,2]
[354117450,1740257437894,-151.0,0.0001491,2]
[354117452,1740257437903,-795.31,0.0001491,2]
[354117454,1740257437914,-2444.37,0.0001491,2]
[354117456,1740257437923,-2444.37,0.0001491,2]
[354117458,1740257437933,-1242.69,0.0001491,2]
[354117460,1740257437942,-151.0,0.0001491,2]
[354117462,1740257437952,-151.0,0.0001491,2]
[354117463,1740257437961,-188.66,0.00014911,2]
[354117465,1740257437970,-1248.22230996,0.00014983,2]
[354117467,1740257437979,-500.0,0.0001499,2]
[354117469,1740257437989,-233.00914275,0.0001499,2]
[354117470,1740257437999,-162.46939222,0.0001499,2]
[354117472,1740257438008,-500.0,0.00014991,2]
[354117474,1740257438017,-500.0,0.00014991,2]
[354117476,1740257438026,-500.0,0.00014991,2]
[354117478,1740257438036,-2199.91,0.00014991,2]
[354117480,1740257438045,-695.52,0.00014991,2]
[354117482,1740257438054,-500.0,0.00014991,2]
[354117484,1740257438063,-637.59,0.00014991,2]
[354117486,1740257438073,-500.0,0.00014991,2]
[354117488,1740257438081,-500.0,0.00014992,2]
[354117490,1740257438091,-540.37,0.00014992,2]
[354117492,1740257438100,-500.0,0.00014992,2]
[354117494,1740257438110,-500.0,0.00014992,2]
[354117496,1740257438119,-3052.19,0.00014992,2]
[354117498,1740257438128,-17888.7,0.00014992,2]
[354117500,1740257438137,-566.2,0.00014992,2]
[354117502,1740257438146,-795.31,0.00014992,2]
[354117504,1740257438156,-1399.06032791,0.00014992,2]
[354117513,1740257438238,-893.20064747,0.00014992,2]
[354117515,1740257438250,-152.10902462,0.00014992,2]
[354117517,1740257438260,-799.29992092,0.00014992,2]
[354117520,1740257438276,-500.0,0.0001458,2]
[354117522,1740257438285,-1645.07007908,0.00014992,2]
[354117524,1740257438295,-1345.78212672,0.00014992,2]
[354117526,1740257438306,-919.50929136,0.00014992,2]
[354117528,1740257438318,-179.07858192,0.00014992,2]
[354117530,1740257438328,-2444.37,0.00014992,2]
[354117532,1740257438337,-2444.37,0.00014992,2]
[354117534,1740257438346,-2444.50242299,0.00014992,2]
[354117536,1740257438356,-1242.69,0.00014992,2]
[354117538,1740257438365,-500.0,0.00015073,2]
[354117540,1740257438374,-500.0,0.00015073,2]
[354117542,1740257438384,-500.0,0.00015073,2]
[354117544,1740257438393,-2199.91,0.00015073,2]
[354117546,1740257438402,-695.52,0.00015073,2]
[354117548,1740257438412,-500.0,0.00015073,2]
[354117550,1740257438422,-500.0,0.00015073,2]
[354117552,1740257438431,-500.0,0.00015075,2]
[354117554,1740257438440,-540.37,0.00015075,2]
[354117556,1740257438449,-500.0,0.00015075,2]
[354117558,1740257438458,-592.7,0.00015075,2]
[354117560,1740257438467,-17888.7,0.00015075,2]
[354117562,1740257438477,-566.2,0.00015075,2]
[354117564,1740257438486,-795.31,0.00015075,2]
[354117566,1740257438495,-1242.69,0.00015075,2]
[354117568,1740257438505,-1000.0,0.00015121,2]
[354117570,1740257438514,-1248.22230996,0.00015147,2]
[354117572,1740257438523,-500.0,0.00015155,2]
[354117574,1740257438532,-172.48,0.00015155,2]
[354117576,1740257438541,-500.0,0.00015155,2]
[354117578,1740257438550,-2199.91,0.00015155,2]
[354117580,1740257438560,-695.52,0.00015155,2]
[354117582,1740257438569,-500.0,0.00015155,2]
[354117584,1740257438579,-500.0,0.00015155,2]
[354117586,1740257438588,-151.0,0.00015157,2]
[354117588,1740257438597,-500.0,0.00015157,2]
[354117590,1740257438607,-540.37,0.00015157,2]
[354117592,1740257438616,-500.0,0.00015157,2]
[354117594,1740257438625,-151.0,0.00015157,2]
[354117596,1740257438634,-151.0,0.00015157,2]
[354117598,1740257438643,-17888.7,0.00015157,2]
[354117600,1740257438653,-566.2,0.00015157,2]
[354117602,1740257438662,-151.0,0.00015157,2]
[354117604,1740257438671,-795.31,0.00015157,2]
[354117606,1740257438680,-1242.69,0.00015157,2]
[354117608,1740257438689,-1248.22230996,0.0001523,2]
[354117610,1740257438699,-500.0,0.00015238,2]
[354117611,1740257438708,-500.0,0.00015238,2]
[354117613,1740257438718,-2199.91,0.00015238,2]
[354117616,1740257438728,-695.52,0.00015238,2]
[354117617,1740257438738,-500.0,0.00015238,2]
[354117619,1740257438748,-500.0,0.00015238,2]
[354117621,1740257438758,-500.0,0.00015239,2]
[354117623,1740257438767,-540.37,0.00015239,2]
[354117626,1740257438780,-500.0,0.00015239,2]
[354117627,1740257438790,-17888.7,0.00015239,2]
[354117630,1740257438799,-566.2,0.00015239,2]
[354117632,1740257438809,-795.31,0.00015239,2]
[354117634,1740257438818,-1242.69,0.00015239,2]
[354117636,1740257438828,-151.0,0.00015239,2]
[354117638,1740257438837,-151.0,0.00015239,2]
[354117640,1740257438847,-500.0,0.0001532,2]
[354117642,1740257438856,-500.0,0.0001532,2]
[354117644,1740257438866,-2199.91,0.0001532,2]
[354117646,1740257438875,-695.52,0.0001532,2]
[354117648,1740257438884,-500.0,0.0001532,2]
[354117650,1740257438894,-603.3,0.0001532,2]
[354117652,1740257438903,-500.0,0.00015321,2]
[354117653,1740257438915,-540.37,0.00015321,2]
[354117655,1740257438924,-500.0,0.00015321,2]
[354117657,1740257438934,-1937.66937822,0.00015321,2]
[354117660,1740257438946,-15695.45306065,0.00015321,2]
[354117680,1740257439507,-500.0,0.00014499,2]
[354117681,1740257439517,-500.0,0.00014499,2]
[354117682,1740257439527,-500.0,0.00014499,2]
[354117683,1740257439536,-500.0,0.00014499,2]
[354117684,1740257439547,-500.0,0.00014499,2]
[354117685,1740257439556,-500.0,0.00014499,2]
[354117686,1740257439565,-500.0,0.00014499,2]
[354117687,1740257439575,-500.0,0.00014499,2]
[354117688,1740257439584,-500.0,0.00014499,2]
[354117689,1740257439594,-500.0,0.00014499,2]
[354117690,1740257439603,-500.0,0.00014499,2]
[354117691,1740257439613,-500.0,0.00014499,2]
[354117692,1740257439623,-517.89315317,0.00014499,2]
[354117693,1740257439632,-500.0,0.00014499,2]
[354117694,1740257439642,-500.0,0.00014499,2]
[354117695,1740257439651,-469.78020255,0.00014499,2]
[354117696,1740257439660,-500.0,0.00014499,2]
[354117698,1740257439670,-500.0,0.00014499,2]
[354117699,1740257439679,-520.9852208,0.00014499,2]
[354117700,1740257439688,-500.0,0.00014499,2]
[354117701,1740257439697,-500.0,0.00014499,2]
[354117702,1740257439706,-500.0,0.00014499,2]
[354117703,1740257439715,-500.0,0.00014499,2]
[354117704,1740257439724,-500.0,0.00014499,2]
[354117705,1740257439734,-500.0,0.00014499,2]
[354117706,1740257439743,-500.0,0.00014499,2]
[354117707,1740257439753,-500.0,0.00014499,2]
[354117708,1740257439762,-500.0,0.00014499,2]
[354117709,1740257439771,-500.0,0.00014499,2]
[354117711,1740257439780,-500.0,0.00014499,2]
[354117712,1740257439789,-500.0,0.00014499,2]
[354117713,1740257439798,-500.0,0.00014499,2]
[354117714,1740257439808,-517.8034373,0.00014499,2]
[354117715,1740257439817,-623.78816753,0.00014499,2]
[354117716,1740257439827,-262.90957894,0.00014499,2]
[354117717,1740257439836,-500.0,0.00014499,2]
[354117718,1740257439846,-500.0,0.00014499,2]
[354117719,1740257439856,-500.0,0.00014499,2]
[354117720,1740257439865,-500.0,0.00014499,2]
[354117721,1740257439875,-500.0,0.00014499,2]
[354117722,1740257439884,-500.0,0.00014499,2]
[354117723,1740257439894,-500.0,0.00014499,2]
[354117724,1740257439904,-500.0,0.00014499,2]
[354117725,1740257439915,-500.0,0.00014499,2]
[354117726,1740257439924,-500.0,0.00014499,2]
[354117727,1740257439934,-500.0,0.00014499,2]
[354117728,1740257439943,-500.0,0.00014499,2]
[354117729,1740257439952,-500.0,0.00014499,2]
[354117730,1740257439963,-500.0,0.00014499,2]
[354117731,1740257439972,-500.0,0.00014499,2]
[354117732,1740257439981,-500.0,0.00014499,2]
[354117733,1740257439990,-500.0,0.00014499,2]
[354117734,1740257440000,-500.0,0.00014499,2]
[354117735,1740257440009,-500.0,0.00014499,2]
[354117736,1740257440019,-500.0,0.00014499,2]
[354117737,1740257440028,-500.0,0.00014662,2]
[354117738,1740257440038,-500.0,0.00014744,2]
[354117739,1740257440047,-203.1,0.00014827,2]
[354117740,1740257440056,-255.57756113,0.00015321,2]
[354117741,1740257440066,-566.2,0.00015321,2]
[354117742,1740257440076,-795.31,0.00015321,2]
[354117743,1740257440085,-1242.69,0.00015321,2]
[354117744,1740257440093,-1248.22230996,0.00015394,2]
[354117745,1740257440102,-500.0,0.00015402,2]
[354117746,1740257440111,-500.0,0.00015402,2]
[354117747,1740257440120,-2199.91,0.00015402,2]
[354117748,1740257440130,-695.52,0.00015402,2]
[354117749,1740257440139,-500.0,0.00015402,2]
[354117750,1740257440148,-500.0,0.00015403,2]
[354117751,1740257440157,-3052.19,0.00015403,2]
[354117752,1740257440166,-17888.7,0.00015403,2]
[354117753,1740257440176,-566.2,0.00015403,2]
[354117754,1740257440186,-795.31,0.00015403,2]
[354117755,1740257440195,-1242.69,0.00015403,2]
[354117756,1740257440204,-151.0,0.00015404,2]
[354117757,1740257440213,-151.0,0.00015404,2]
[354117759,1740257440223,-215.11787806,0.00015404,2]
[354117761,1740257440233,-282.776636,0.00015404,2]
[354117763,1740257440242,-500.0,0.00015484,2]
[354117765,1740257440252,-286.627007,0.00015484,2]
[354117767,1740257440261,-2199.91,0.00015484,2]
[354117768,1740257440270,-695.52,0.00015484,2]
[354117769,1740257440280,-500.0,0.00015484,2]
[354117770,1740257440289,-500.0,0.00015486,2]
[354117771,1740257440298,-17205.84685768,0.00015486,2]
[354117772,1740257440310,-542.05,0.00015486,2]
[354117773,1740257440382,-140.80314232,0.00015486,2]
[354117774,1740257440391,-566.2,0.00015486,2]
[354117775,1740257440400,-795.31,0.00015486,2]
[354117776,1740257440409,-1242.69,0.00015486,2]
[354117777,1740257440418,-151.0,0.00015486,2]
[354117778,1740257440427,-151.0,0.00015486,2]
[354117779,1740257440436,-1248.22230996,0.00015558,2]
[354117780,1740257440445,-500.0,0.00015566,2]
[354117782,1740257440454,-2199.91,0.00015566,2]
[354117784,1740257440464,-695.52,0.00015566,2]
[354117785,1740257440473,-500.0,0.00015566,2]
[354117786,1740257440483,-500.0,0.00015568,2]
[354117787,1740257440492,-17888.7,0.00015568,2]
[354117788,1740257440502,-566.2,0.00015568,2]
[354117789,1740257440511,-795.31,0.00015568,2]
[354117790,1740257440520,-1242.69,0.00015568,2]
[354117791,1740257440529,-1248.22230996,0.00015639,2]
[354117793,1740257440538,-2496.44461992,0.00015641,2]
[354117795,1740257440547,-151.0,0.00015642,2]
[354117796,1740257440556,-500.0,0.00015649,2]
[354117798,1740257440565,-3052.19,0.00015649,2]
[354117800,1740257440575,-3052.19,0.00015649,2]
[354117802,1740257440584,-3052.19,0.00015649,2]
[354117804,1740257440593,-500.0,0.00015649,2]
[354117806,1740257440602,-2199.91,0.00015649,2]
[354117808,1740257440611,-695.52,0.00015649,2]
[354117809,1740257440620,-500.0,0.00015649,2]
[354117811,1740257440629,-500.0,0.0001565,2]
[354117813,1740257440638,-500.0,0.0001565,2]
[354117814,1740257440647,-500.0,0.0001565,2]
[354117815,1740257440656,-500.0,0.0001565,2]
[354117816,1740257440665,-151.0,0.0001565,2]
[354117817,1740257440674,-634.64,0.0001565,2]
[354117818,1740257440683,-3052.19,0.0001565,2]
[354117819,1740257440692,-3052.19,0.0001565,2]
[354117820,1740257440701,-3052.19,0.0001565,2]
[354117821,1740257440711,-3052.19,0.0001565,2]
[354117822,1740257440720,-151.0,0.0001565,2]
[354117823,1740257440730,-17888.7,0.0001565,2]
[354117824,1740257440739,-566.2,0.0001565,2]
[354117825,1740257440749,-795.31,0.0001565,2]
[354117826,1740257440758,-1242.69,0.0001565,2]
[354117827,1740257440767,-500.0,0.00015651,2]
[354117828,1740257440775,-500.0,0.00015651,2]
[354117829,1740257440784,-501.0305215,0.00015651,2]
[354117830,1740257440793,-500.94317451,0.00015651,2]
[354117831,1740257440802,-500.0,0.00015651,2]
[354117832,1740257440812,-524.8466742,0.00015651,2]
[354117833,1740257440821,-500.87362213,0.00015651,2]
[354117834,1740257440830,-500.0,0.00015651,2]
[354117835,1740257440839,-500.0,0.00015651,2]
[354117836,1740257440849,-500.0,0.00015651,2]
[354117837,1740257440858,-501.0166459,0.00015651,2]
[354117838,1740257440867,-500.0,0.00015651,2]
[354117839,1740257440876,-500.87485994,0.00015651,2]
[354117840,1740257440885,-500.0,0.00015651,2]
[354117841,1740257440894,-500.0,0.00015651,2]
[354117842,1740257440903,-500.0,0.00015651,2]
[354117843,1740257440914,-500.0,0.00015651,2]
[354117844,1740257440924,-182.62607118,0.00015651,2]
[354117845,1740257440933,-515.94238992,0.00015651,2]
[354117846,1740257440943,-342.76402241,0.00015651,2]
[354117847,1740257440952,-500.0,0.00015651,2]
[354117848,1740257440962,-500.0,0.00015651,2]
[354117849,1740257440971,-500.0,0.00015651,2]
[354117850,1740257440980,-500.0,0.00015651,2]
[354117851,1740257440990,-500.0,0.00015651,2]
[354117852,1740257440999,-503.10285857,0.00015651,2]
[354117853,1740257441008,-500.0,0.00015651,2]
[354117854,1740257441017,-500.0,0.00015651,2]
[354117855,1740257441026,-500.0,0.00015651,2]
[354117856,1740257441035,-500.0,0.00015651,2]
[354117857,1740257441044,-500.0,0.00015651,2]
[354117858,1740257441054,-500.0,0.00015651,2]
[354117859,1740257441063,-500.0,0.00015651,2]
[354117860,1740257441072,-500.0,0.00015651,2]
[354117861,1740257441081,-500.0,0.00015651,2]
[354117862,1740257441090,-506.33584385,0.00015651,2]
[354117863,1740257441099,-500.0,0.00015651,2]
[354117864,1740257441108,-500.0,0.00015651,2]
[354117865,1740257441117,-500.0,0.00015651,2]
[354117866,1740257441127,-444.57651355,0.00015651,2]
[354117867,1740257441137,-500.0,0.00015651,2]
[354117868,1740257441146,-500.0,0.00015651,2]
[354117869,1740257441155,-500.0,0.00015651,2]
[354117870,1740257441164,-500.0,0.00015651,2]
[354117871,1740257441172,-500.0,0.00015651,2]
[354117872,1740257441182,-500.0,0.00015651,2]
[354117873,1740257441191,-500.0,0.00015651,2]
[354117874,1740257441200,-500.73883608,0.00015651,2]
[354117875,1740257441210,-500.0,0.00015651,2]
[354117876,1740257441219,-500.0,0.00015651,2]
[354117877,1740257441227,-500.0,0.00015651,2]
[354117878,1740257441236,-500.0,0.00015651,2]
[354117879,1740257441246,-500.0,0.00015651,2]
[354117880,1740257441255,-500.0,0.00015651,2]
[354117881,1740257441263,-500.0,0.00015651,2]
[354117882,1740257441272,-500.0,0.00015651,2]
[354117883,1740257441282,-500.0,0.00015651,2]
[354117884,1740257441291,-500.0,0.00015651,2]
[354117885,1740257441300,-500.0,0.00015651,2]
[354117886,1740257441309,-500.0,0.00015651,2]
[354117887,1740257441319,-500.0,0.00015651,2]
[354117888,1740257441327,-195.86670974,0.00015651,2]
[354117889,1740257441336,-500.0,0.00015651,2]
[354117890,1740257441411,-500.0,0.00015651,2]
[354117891,1740257441430,-500.0,0.00015651,2]
[354117892,1740257441440,-500.0,0.00015651,2]
[354117893,1740257441450,-500.0,0.00015651,2]
[354117894,1740257441459,-500.0,0.00015651,2]
[354117895,1740257441467,-500.0,0.00015651,2]
[354117896,1740257441476,-500.0,0.00015651,2]
[354117897,1740257441485,-500.0,0.00015651,2]
[354117898,1740257441494,-500.0,0.00015651,2]
[354117899,1740257441503,-502.18607029,0.00015651,2]
[354117900,1740257441512,-546.72239541,0.00015651,2]
[354117901,1740257441521,-501.8535876,0.00015651,2]
[354117902,1740257441530,-500.0,0.00015651,2]
[354117903,1740257441539,-500.0,0.00015651,2]
[354117904,1740257441548,-500.0,0.00015651,2]
[354117905,1740257441557,-500.0,0.00015651,2]
[354117906,1740257441567,-502.39894354,0.00015651,2]
[354117907,1740257441576,-500.0,0.00015651,2]
[354117908,1740257441585,-500.0,0.00015651,2]
[354117909,1740257441595,-500.0,0.00015651,2]
[354117910,1740257441604,-500.0,0.00015651,2]
[354117911,1740257441613,-501.84855953,0.00015651,2]
[354117912,1740257441623,-500.0,0.00015651,2]
[354117913,1740257441632,-464.48599691,0.00015651,2]
[354117914,1740257441642,-500.0,0.00015651,2]
[354117915,1740257441651,-501.13974454,0.00015651,2]
[354117916,1740257441661,-500.0,0.00015651,2]
[354117917,1740257441670,-500.0,0.00015651,2]
[354117918,1740257441679,-500.0,0.00015651,2]
[354117919,1740257441689,-500.0,0.00015651,2]
[354117920,1740257441698,-500.0,0.00015651,2]
[354117921,1740257441707,-500.0,0.00015651,2]
[354117922,1740257441717,-151.0,0.00015651,2]
[354117923,1740257441726,-500.0,0.00015651,2]
[354117924,1740257441736,-500.0,0.00015651,2]
[354117925,1740257441745,-500.0,0.00015651,2]
[354117926,1740257441756,-284.371584,0.00015651,2]
[354117927,1740257441766,-151.0,0.00015651,2]
[354117928,1740257441776,-151.0,0.00015651,2]
[354117929,1740257441785,-151.0,0.00015651,2]
[354117930,1740257441795,-174.91972349,0.00015658,2]
[354117931,1740257441805,-151.0,0.00015722,2]
[354117932,1740257441814,-1248.22230996,0.00015723,2]
[354117933,1740257441823,-500.0,0.00015731,2]
[354117934,1740257441833,-3052.19,0.00015731,2]
[354117935,1740257441843,-374.49436047,0.00015731,2]
[354117936,1740257441852,-2199.91,0.00015731,2]
[354117937,1740257441861,-695.52,0.00015731,2]
[354117938,1740257441871,-500.0,0.00015731,2]
[354117939,1740257441880,-3052.19,0.00015732,2]
[354117940,1740257441890,-4174.92879974,0.00015732,2]
[354117941,1740257441903,-1891.98913166,0.00015732,2]
[354117942,1740257442017,-11821.7820686,0.00015732,2]
[354117943,1740257442026,-566.2,0.00015732,2]
[354117944,1740257442035,-795.31,0.00015732,2]
[354117945,1740257442045,-1242.69,0.00015732,2]
[354117946,1740257442054,-582.92,0.00015733,2]
[354117947,1740257442063,-500.0,0.00015733,2]
[354117948,1740257442072,-595.38,0.00015733,2]
[354117949,1740257442081,-500.0,0.00015733,2]
[354117950,1740257442090,-151.0,0.00015733,2]
[354117951,1740257442099,-151.0,0.00015733,2]
[354117952,1740257442108,-151.0,0.00015733,2]
[354117953,1740257442118,-500.0,0.00015733,2]
[354117954,1740257442128,-151.0,0.00015748,2]
[354117955,1740257442138,-151.0,0.00015748,2]
[354117956,1740257442147,-1248.22230996,0.00015748,2]
[354117957,1740257442156,-3052.19,0.00015756,2]
[354117958,1740257442166,-3052.19,0.00015757,2]
[354117959,1740257442175,-500.0,0.00015758,2]
[354117960,1740257442184,-500.0,0.00015758,2]
[354117961,1740257442193,-488.72,0.00015758,2]
[354117962,1740257442203,-154.331348,0.00015758,2]
[354117963,1740257442212,-3052.19,0.00015758,2]
[354117964,1740257442221,-3052.19,0.00015758,2]
[354117965,1740257442230,-3052.19,0.00015758,2]
[354117966,1740257442240,-3052.19,0.00015758,2]
[354117967,1740257442251,-3052.19,0.00015758,2]
[354117968,1740257442260,-3052.32564753,0.00015758,2]
[354117969,1740257442270,-151.0,0.00015758,2]
[354117970,1740257442279,-500.99768978,0.00015759,2]
[354117971,1740257442289,-500.0,0.00015759,2]
[354117972,1740257442298,-500.0,0.00015759,2]
[354117973,1740257442308,-500.0,0.00015759,2]
[354117974,1740257442317,-500.0,0.00015759,2]
[354117975,1740257442327,-500.0,0.00015759,2]
[354117976,1740257442337,-500.0,0.00015759,2]
[354117977,1740257442346,-500.0,0.00015759,2]
[354117978,1740257442355,-500.0,0.00015759,2]
[354117979,1740257442364,-500.0,0.00015759,2]
[354117980,1740257442373,-500.0,0.00015759,2]
[354117981,1740257442383,-500.0,0.00015759,2]
[354117982,1740257442392,-500.0,0.00015759,2]
[354117983,1740257442402,-500.0,0.00015759,2]
[354117984,1740257442411,-500.0,0.00015759,2]
[354117985,1740257442420,-500.0,0.00015759,2]
[354117986,1740257442429,-500.0,0.00015759,2]
[354117987,1740257442439,-500.0,0.00015759,2]
[354117988,1740257442448,-500.0,0.00015759,2]
[354117989,1740257442458,-500.0,0.00015759,2]
[354117990,1740257442468,-500.0,0.00015759,2]
[354117991,1740257442477,-500.0,0.00015759,2]
[354117992,1740257442487,-516.87827575,0.00015759,2]
[354117993,1740257442497,-500.0,0.00015759,2]
[354117994,1740257442507,-629.83837481,0.00015759,2]
[354117995,1740257442517,-261.17875821,0.00015759,2]
[354117996,1740257442527,-502.81041958,0.00015759,2]
[354117997,1740257442536,-500.0,0.00015759,2]
[354117998,1740257442546,-500.0,0.00015759,2]
[354117999,1740257442555,-500.0,0.00015759,2]
[354118000,1740257442564,-500.0,0.00015759,2]
[354118001,1740257442573,-500.0,0.00015759,2]
[354118002,1740257442583,-500.0,0.00015759,2]
[354118003,1740257442592,-500.0,0.00015759,2]
[354118004,1740257442601,-500.0,0.00015759,2]
[354118005,1740257442611,-500.0,0.00015759,2]
[354118006,1740257442620,-500.0,0.00015759,2]
[354118007,1740257442629,-500.0,0.00015759,2]
[354118009,1740257442638,-500.0,0.00015759,2]
[354118011,1740257442648,-500.0,0.00015759,2]
[354118012,1740257442658,-500.0,0.00015759,2]
[354118013,1740257442667,-500.0,0.00015759,2]
[354118014,1740257442676,-500.0,0.00015759,2]
[354118015,1740257442685,-500.0,0.00015759,2]
[354118016,1740257442695,-267.03093373,0.00015759,2]
[354118017,1740257442703,-251.521152,0.00015759,2]
[354118019,1740257442713,-151.0,0.00015759,2]
[354118021,1740257442723,-151.0,0.00015759,2]